bitfinex-derivatives/quotes_SOLF0:USTF0_20240918
["timestamp","ask_amount","ask_price","bid_price","bid_amount"]
[1726675795478,3.8994,128.22,128.16,14.99]
[1726675795778,3.8994,128.22,128.19,3.9002]
[1726675797179,5.50150796,128.24,128.18,14.99]
[1726675797583,3.8992,128.23,128.19,3.9001]
[1726675797982,5.50150796,128.24,128.18,14.99]
[1726675798379,3.8997,128.21,128.18,3.9004]
[1726675798588,3.8997,128.21,128.16,14.99]
[1726675798879,3.8997,128.21,128.17,3.9006]
[1726675799084,3.8997,128.21,128.16,14.99]
[1726675799685,5.50150796,128.24,128.16,14.99]
[1726675800186,3.8998,128.21,128.16,14.99]
[1726675800386,5.50150796,128.24,128.16,14.99]
[1726675800687,3.9002,128.2,128.16,3.9009]
[1726675801396,3.9002,128.19,128.16,3.9009]
[1726675801592,14.99,128.23,128.16,3.9009]
[1726675801791,3.9002,128.19,128.15,18.8913]
[1726675802695,16.5208,128.23,128.15,14.99]
[1726675802696,14.99,128.22,128.15,14.99]
[1726675802989,1.5289,128.18,128.14,3.9016]
[1726675803188,3.95495003,128.17,128.14,3.9016]
[1726675803395,1.5289,128.18,128.15,14.99]
[1726675803987,1.5289,128.18,128.17,3.9008]
[1726675804181,1.5289,128.18,128.16,14.99]
[1726675804382,1.5289,128.18,128.16,18.891]
[1726675806383,1.5289,128.18,128.15,14.99]
[1726675806790,1.5289,128.18,128.16,3.9009]
[1726675808093,1.5289,128.18,128.16,14.99]
[1726675808290,3.8995,128.22,128.16,14.99]
[1726675808486,5.5605,128.22,128.19,3.9001]
[1726675808793,1.661,128.22,128.19,3.9001]
[1726675809797,1.661,128.22,128.2,14.99]
[1726675810199,127.08931405,128.26,128.2,14.99]
[1726675810495,1.5228,128.26,128.21,14.99]
[1726675810700,5.45354367,128.26,128.21,14.99]
[1726675810904,1.5228,128.26,128.23,3.8988]
[1726675811201,1.5228,128.26,128.23,14.99]
[1726675811495,5.48713309,128.26,128.23,14.99]
[1726675812592,5.48713309,128.26,128.22,3.8992]
[1726675813196,9.38523309,128.26,128.22,3.8992]
[1726675814496,5.48713309,128.26,128.23,3.8989]
[1726675815292,5.48713309,128.26,128.21,14.99]
[1726675815293,9.38523309,128.26,128.22,3.8992]
[1726675815495,5.48713309,128.26,128.19,16.5278]
[1726675815893,3.899,128.24,128.2,3.8997]
[1726675816493,3.899,128.24,128.21,3.8996]
[1726675816799,5.48713309,128.26,128.19,16.5278]
[1726675816989,5.48713309,128.26,128.2,3.8998]
[1726675817188,5.48713309,128.26,128.19,16.5278]
[1726675817596,5.48713309,128.26,128.21,14.99]
[1726675817805,5.48713309,128.26,128.23,14.99]
[1726675817806,9.38543309,128.26,128.23,14.99]
[1726675818601,5.48713309,128.26,128.24,3.8987]
[1726675819100,5.48713309,128.26,128.23,18.8889]
[1726675819298,5.48713309,128.26,128.21,14.99]
[1726675819796,3.8986,128.25,128.22,3.8991]
[1726675820197,5.48713309,128.26,128.23,14.99]
[1726675820793,1.5228,128.26,128.25,14.99]
[1726675821096,32.58881966,128.3,128.25,14.99]
[1726675821298,19.21381423,128.3,128.27,14.99]
[1726675821599,19.21381423,128.3,128.25,14.99]
[1726675821600,1.6156,128.3,128.25,14.99]
[1726675822594,19.211221,128.3,128.25,14.99]
[1726675822795,3.8974,128.29,128.26,3.8981]
[1726675823203,1.6156,128.3,128.26,3.8981]
[1726675823503,5.5126,128.3,128.26,3.8981]
[1726675823696,1.6156,128.3,128.25,18.8882]
[1726675823898,19.2109258,128.3,128.19,1.5378]
[1726675824097,3.898,128.27,128.24,14.99]
[1726675824293,1.6156,128.3,128.25,18.8882]
[1726675824497,19.21169391,128.3,128.25,18.8882]
[1726675824694,1.6156,128.3,128.26,3.8979]
[1726675824896,1.6156,128.3,128.25,14.99]
[1726675825697,5.5126,128.3,128.27,3.8977]
[1726675826100,19.21070031,128.3,128.27,14.99]
[1726675826295,19.21070031,128.3,128.28,14.99]
[1726675826296,1.6156,128.3,128.28,14.99]
[1726675826803,1.6156,128.3,128.29,3.8972]
[1726675827799,1.6156,128.3,128.28,14.99]
[1726675827800,17.59332476,128.32,128.28,14.99]
[1726675828005,3.92854111,128.33,128.3,14.99]
[1726675828209,1.5819,128.34,128.28,14.99]
[1726675828602,3.90834633,128.33,128.28,14.99]
[1726675828803,3.90834633,128.33,128.3,14.99]
[1726675829003,1.5819,128.34,128.3,14.99]
[1726675829299,5.57721981,128.34,128.3,14.99]
[1726675829511,5.57721981,128.34,128.28,14.99]
[1726675829703,1.5819,128.34,128.27,14.99]
[1726675829903,5.38650218,128.34,128.27,14.99]
[1726675830105,14.99,128.33,128.26,1.5612]
[1726675830800,3.8973,128.29,128.26,1.5612]
[1726675831201,23.51510218,128.34,128.26,1.5612]
[1726675831406,3.897,128.3,128.27,3.8976]
[1726675831806,3.8973,128.29,128.26,5.4592]
[1726675832408,14.99,128.32,128.2,1.6033]
[1726675832602,1.5712,128.28,128.22,14.99]
[1726675832903,7.70583559,128.27,128.22,14.99]
[1726675833108,1.5712,128.28,128.24,14.99]
[1726675833510,1.5712,128.28,128.26,3.8979]
[1726675833713,1.5712,128.28,128.26,14.99]
[1726675834211,16.84694436,128.33,128.26,14.99]
[1726675834415,16.84694436,128.33,128.23,3.81330358]
[1726675834416,18.44154436,128.33,128.28,14.99]
[1726675834608,3.8964,128.32,128.29,3.8971]
[1726675834816,1.5946,128.33,128.28,14.99]
[1726675835114,1.5946,128.33,128.29,14.99]
[1726675835311,5.4908,128.33,128.3,3.8966]
[1726675836014,1.5946,128.33,128.29,14.99]
[1726675836607,3.8964,128.32,128.29,18.8871]
[1726675837212,3.8967,128.31,128.28,3.8975]
[1726675837408,3.8967,128.31,128.28,18.8875]
[1726675838317,3.8969,128.3,128.28,14.99]
[1726675838819,1.5946,128.33,128.28,14.99]
[1726675839010,3.8964,128.32,128.28,14.99]
[1726675839209,1.5946,128.33,128.29,14.99]
[1726675839916,5.4907,128.33,128.29,14.99]
[1726675840512,5.4907,128.33,128.3,3.8967]
[1726675841116,5.4907,128.33,128.31,14.99]
[1726675841117,1.5946,128.33,128.31,14.99]
[1726675842514,1.5946,128.33,128.31,18.8864]
[1726675846219,1.5946,128.33,128.31,14.99]
[1726675847218,1.5946,128.33,128.31,18.8865]
[1726675849124,1.5946,128.33,128.32,3.8963]
[1726675849428,1.548,128.39,128.32,3.8963]
[1726675849627,1.5379,128.37,128.32,3.8963]
[1726675849923,1.5379,128.37,128.31,14.99]
[1726675850321,3.8955,128.35,128.32,3.8961]
[1726675850620,3.96085159,128.35,128.31,14.99]
[1726675850824,3.8962,128.33,128.31,14.99]
[1726675851019,7.76385967,128.33,128.31,14.99]
[1726675851526,1.5379,128.37,128.31,14.99]
[1726675851928,3.8955,128.35,128.31,14.99]
[1726675852227,3.8955,128.35,128.32,3.8961]
[1726675852430,3.8957,128.34,128.31,14.99]
[1726675852821,5.39113247,128.37,128.31,14.99]
[1726675853022,3.8955,128.35,128.31,14.99]
[1726675853330,3.8955,128.35,128.32,3.8961]
[1726675853931,3.8955,128.35,128.34,9.58]
[1726675854329,5.39113247,128.37,128.34,9.58]
[1726675854530,5.39113247,128.37,128.36,9.58]
[1726675854830,5.39113247,128.37,128.34,9.58]
[1726675855031,14.97113247,128.37,128.34,9.58]
[1726675855228,5.39113247,128.37,128.34,9.58]
[1726675855530,5.39113247,128.37,128.26,3.21]
[1726675855531,5.39113247,128.37,128.33,9.58]
[1726675855731,14.97113247,128.37,128.33,9.58]
[1726675856127,3.8957,128.34,128.33,9.58]
[1726675856728,3.8961,128.33,128.31,9.58]
[1726675857930,5.39113247,128.37,128.26,3.21]
[1726675858130,1.4249,128.32,128.3,9.58]
[1726675858930,5.277832,128.32,128.31,9.58]
[1726675859130,9.174232,128.32,128.31,9.58]
[1726675860036,1.4249,128.32,128.31,9.58]
[1726675860230,5.38215514,128.32,128.31,9.58]
[1726675860433,1.4249,128.32,128.31,9.58]
[1726675860634,5.32639719,128.32,128.26,3.21]
[1726675860833,5.32639719,128.32,128.3,9.58]
[1726675860834,1.4249,128.32,128.3,9.58]
[1726675861029,1.4249,128.32,128.26,3.21]
[1726675861230,5.36226944,128.32,128.26,3.21]
[1726675861431,3.8971,128.3,128.27,9.58]
[1726675861641,3.8971,128.3,128.28,9.58]
[1726675862233,3.8967,128.31,128.28,9.58]
[1726675862438,3.8967,128.31,128.29,9.58]
[1726675863038,3.8969,128.3,128.29,9.58]
[1726675863237,5.23008799,128.32,128.29,9.58]
[1726675864343,3.8967,128.31,128.29,9.58]
[1726675864536,14.81008799,128.32,128.26,3.21]
[1726675864737,14.81008799,128.32,128.28,9.58]
[1726675864944,3.8971,128.3,128.28,9.58]
[1726675865441,3.8972,128.29,128.28,9.58]
[1726675865638,5.23008799,128.32,128.21,155.96]
[1726675865844,3.8979,128.27,128.25,9.58]
[1726675866042,3.8979,128.27,128.22,3.0079]
[1726675866243,9.58,128.28,128.24,9.58]
[1726675866543,11.0078,128.27,128.23,9.58]
[1726675866752,9.58,128.25,128.22,9.58]
[1726675866950,3.86050179,128.25,128.22,9.58]
[1726675867245,9.58,128.26,128.23,9.58]
[1726675867445,7.78172573,128.25,128.22,9.58]
[1726675868042,3.8989,128.24,128.2,14.98]
[1726675868345,3.8989,128.24,128.2,18.8797]
[1726675868543,7.87282147,128.23,128.2,14.98]
[1726675868738,3.97362147,128.23,128.2,14.98]
[1726675868940,1.4278,128.27,128.2,14.98]
[1726675869339,3.8986,128.25,128.2,14.98]
[1726675869542,1.4278,128.27,128.22,14.98]
[1726675869850,3.8981,128.26,128.22,14.98]
[1726675870042,3.8981,128.26,128.22,18.879]
[1726675870243,3.8981,128.26,128.22,14.98]
[1726675871340,3.8981,128.26,128.22,18.8792]
[1726675871540,3.8985,128.25,128.22,18.8792]
[1726675872253,3.8987,128.24,128.22,14.98]
[1726675872439,3.8987,128.24,128.2,14.98]
[1726675872845,3.8987,128.24,128.2,18.8797]
[1726675873549,3.8987,128.24,128.21,3.8996]
[1726675873953,3.8987,128.24,128.2,14.98]
[1726675874343,3.8987,128.24,128.2,18.8797]
[1726675874741,3.8992,128.23,128.18,16.5033]
[1726675874943,3.88698247,128.25,128.18,16.5033]
[1726675875142,16.4078,128.27,128.18,16.5033]
[1726675875447,14.98,128.25,128.18,1.5233]
[1726675875647,18.86052341,128.25,128.18,1.5233]
[1726675876454,18.86052341,128.25,128.19,3.9]
[1726675876751,3.88052341,128.25,128.18,1.5233]
[1726675876950,2.8612,128.26,128.19,14.98]
[1726675877751,3.8993,128.23,128.19,18.8801]
[1726675877955,2.8612,128.26,128.19,14.98]
[1726675878152,1.4278,128.27,128.2,14.98]
[1726675878457,3.8986,128.25,128.22,3.8991]
[1726675878656,1.4278,128.27,128.2,14.98]
[1726675878849,3.8986,128.25,128.22,3.8993]
[1726675879048,3.84931067,128.25,128.2,14.98]
[1726675879248,16.4078,128.27,128.2,14.98]
[1726675879453,16.4078,128.27,128.2,18.8797]
[1726675880251,3.8989,128.24,128.2,18.8797]
[1726675880446,7.82741299,128.24,128.2,18.8797]
[1726675881447,3.899,128.23,128.2,14.98]
[1726675881751,1.4278,128.27,128.2,14.98]
[1726675881953,1.4278,128.27,128.21,3.8994]
[1726675882346,1.4278,128.27,128.2,14.98]
[1726675882548,3.8987,128.25,128.21,3.8995]
[1726675882759,7.87560026,128.25,128.21,3.8995]
[1726675882956,3.97690026,128.25,128.21,3.8995]
[1726675883159,3.899,128.24,128.2,18.8798]
[1726675883360,7.82088231,128.24,128.2,18.8798]
[1726675884060,3.899,128.24,128.21,3.8996]
[1726675884450,7.73269751,128.24,128.2,14.98]
[1726675885061,7.73269751,128.24,128.2,18.8797]
[1726675885657,7.73269751,128.24,128.2,14.98]
[1726675886163,1.4278,128.27,128.22,14.98]
[1726675886552,1.4278,128.27,128.25,18.8783]
[1726675887057,1.4278,128.27,128.25,14.98]
[1726675887249,338.0,128.34,128.25,14.98]
[1726675887454,1.4098,128.31,128.25,14.98]
[1726675887662,5.28759229,128.31,128.25,14.98]
[1726675887957,3.8974,128.29,128.25,18.8782]
[1726675888352,3.8975,128.28,128.25,18.8782]
[1726675888557,3.8975,128.28,128.25,14.98]
[1726675888761,3.82508971,128.28,128.23,14.98]
[1726675888960,3.8986,128.25,128.22,14.98]
[1726675889156,3.92924013,128.28,128.21,3.8994]
[1726675889665,3.8986,128.25,128.21,3.8994]
[1726675890167,3.8986,128.25,128.22,3.8993]
[1726675890562,3.8986,128.25,128.2,14.98]
[1726675890765,3.8987,128.24,128.21,3.8994]
[1726675892162,3.8987,128.24,128.2,18.8798]
[1726675892567,3.8987,128.24,128.2,14.98]
[1726675893569,3.8987,128.24,128.2,18.8797]
[1726675894172,3.8987,128.24,128.21,3.8995]
[1726675894967,18.82147292,128.29,128.2,18.8797]
[1726675895172,3.84147292,128.29,128.2,18.8797]
[1726675895372,14.98,128.28,128.2,14.98]
[1726675895574,18.92395461,128.28,128.2,14.98]
[1726675895769,3.8989,128.24,128.21,3.8995]
[1726675896170,18.92395461,128.28,128.2,14.98]
[1726675896667,3.8992,128.23,128.2,18.8798]
[1726675897067,3.8992,128.23,128.2,14.98]
[1726675897266,18.92395461,128.28,128.19,3.9]
[1726675897267,3.8993,128.22,128.19,3.9]
[1726675897770,1.3979,128.26,128.2,3.8998]
[1726675897970,3.8992,128.23,128.2,3.8998]
[1726675898170,1.3979,128.26,128.2,14.98]
[1726675898877,1.3979,128.26,128.22,3.8991]
[1726675899179,1.3979,128.26,128.22,18.8791]
[1726675899571,3.8987,128.24,128.21,3.8994]
[1726675899772,1.3979,128.26,128.2,14.98]
[1726675900174,3.8985,128.25,128.22,3.8991]
[1726675901068,1.3979,128.26,128.2,14.98]
[1726675901875,3.8985,128.25,128.22,3.8992]
[1726675903181,3.8988,128.24,128.21,3.8995]
[1726675903784,1.3979,128.26,128.2,14.98]
[1726675904188,1.3979,128.26,128.22,14.98]
[1726675904681,127.00898469,128.32,128.25,14.98]
[1726675904984,1.5326,128.31,128.27,14.98]
[1726675905185,1.5326,128.31,128.27,18.8776]
[1726675905482,1.5326,128.31,128.27,14.98]
[1726675905688,1.5326,128.31,128.28,3.8973]
[1726675905689,5.4294,128.31,128.28,3.8973]
[1726675905985,5.4294,128.31,128.27,14.98]
[1726675906179,5.4294,128.31,128.27,18.8776]
[1726675906387,3.897,128.3,128.27,18.8776]
[1726675906588,1.5326,128.31,128.27,18.8776]
[1726675907085,5.4293,128.31,128.28,3.8975]
[1726675907386,1.5326,128.31,128.28,1.5265]
[1726675907586,5.4292,128.31,128.28,1.5265]
[1726675908581,1.5326,128.31,128.28,16.5065]
[1726675908785,1.3976,128.36,128.28,16.5065]
[1726675909083,1.5201,128.35,128.28,16.5065]
[1726675909277,3.8911865,128.34,128.28,16.5065]
[1726675909482,3.8911865,128.34,128.3,14.98]
[1726675909981,7.7868865,128.34,128.3,18.8766]
[1726675910188,3.8911865,128.34,128.3,14.98]
[1726675910576,3.8961,128.33,128.3,14.98]
[1726675911287,3.8961,128.33,128.29,18.877]
[1726675911882,3.8911865,128.34,128.3,14.98]
[1726675912685,1.5201,128.35,128.29,18.877]
[1726675913681,3.8962,128.33,128.29,18.877]
[1726675913882,7.73500527,128.33,128.29,18.877]
[1726675914080,3.8967,128.31,128.28,1.5265]
[1726675914382,3.83880527,128.33,128.28,1.5265]
[1726675914581,3.8971,128.3,128.28,1.5265]
[1726675914990,18.93826833,128.33,128.25,14.98]
[1726675915187,14.98,128.33,128.25,16.4973]
[1726675915683,3.8974,128.29,128.25,20.3955]
[1726675917390,3.8974,128.29,128.26,3.8981]
[1726675917779,3.88923556,128.33,128.27,14.98]
[1726675918089,16.5001,128.35,128.27,14.98]
[1726675918291,3.8972,128.29,128.27,14.98]
[1726675918490,3.97136128,128.3,128.27,14.98]
[1726675918691,16.5001,128.35,128.27,14.98]
[1726675919092,3.8973,128.29,128.27,14.98]
[1726675919485,7.76656151,128.3,128.27,14.98]
[1726675919686,1.5201,128.35,128.28,14.98]
[1726675919886,1.5201,128.35,128.28,18.8773]
[1726675920085,1.5201,128.35,128.28,14.98]
[1726675920488,16.5001,128.35,128.27,18.8778]
[1726675920694,3.8972,128.3,128.27,18.8778]
[1726675920991,7.79562428,128.3,128.27,18.8778]
[1726675921190,3.8972,128.3,128.27,18.8778]
[1726675921787,3.8972,128.29,128.27,14.98]
[1726675922094,1.5201,128.35,128.26,3.898]
[1726675922289,3.8973,128.29,128.26,3.898]
[1726675922489,7.75923826,128.29,128.26,3.898]
[1726675922681,1.5201,128.35,128.27,18.8777]
[1726675922682,16.5001,128.35,128.27,18.8777]
[1726675922884,3.8971,128.3,128.27,18.8777]
[1726675923090,7.85692238,128.3,128.27,18.8777]
[1726675923394,7.85692238,128.3,128.28,3.8974]
[1726675923590,7.85692238,128.3,128.27,14.98]
[1726675923788,3.8968,128.31,128.27,14.98]
[1726675924488,3.8968,128.31,128.28,14.98]
[1726675924690,3.9945303,128.32,128.28,14.98]
[1726675924890,1.5201,128.35,128.29,3.8972]
[1726675925085,3.8964,128.32,128.29,3.8972]
[1726675925291,3.94141508,128.32,128.29,3.8972]
[1726675925492,1.5201,128.35,128.29,3.8972]
[1726675925986,3.8965,128.32,128.29,3.8972]
[1726675926187,3.8509244,128.32,128.29,3.8972]
[1726675926395,3.8966,128.31,128.28,18.8773]
[1726675926993,7.87369932,128.32,128.29,3.8971]
[1726675927793,3.8964,128.32,128.29,3.8971]
[1726675928288,7.79187624,128.32,128.29,3.8971]
[1726675928489,3.8964,128.32,128.29,3.8971]
[1726675928984,3.8964,128.32,128.3,3.8969]
[1726675930792,3.8964,128.32,128.29,3.897]
[1726675930989,3.8966,128.31,128.29,3.897]
[1726675931190,3.87246762,128.33,128.25,1.5012]
[1726675931495,14.98,128.34,128.26,14.98]
[1726675931695,20.41917484,128.34,128.26,14.98]
[1726675931994,20.41917484,128.34,128.26,18.8778]
[1726675932196,3.8973,128.29,128.26,18.8778]
[1726675932492,3.8973,128.29,128.27,3.8976]
[1726675933197,3.897,128.3,128.28,3.8974]
[1726675933396,3.91887484,128.34,128.28,14.98]
[1726675933693,3.8967,128.31,128.29,3.8972]
[1726675933890,3.83658978,128.32,128.29,3.8972]
[1726675934190,16.5001,128.35,128.29,3.8972]
[1726675934790,3.8965,128.32,128.29,3.8972]
[1726675934990,7.81498486,128.32,128.29,3.8972]
[1726675935687,3.8966,128.31,128.28,18.8773]
[1726675936589,3.8966,128.31,128.29,18.8772]
[1726675936789,7.85505245,128.32,128.29,18.8772]
[1726675936984,3.8964,128.32,128.29,18.8772]
[1726675937899,3.8961,128.33,128.3,3.8968]
[1726675938197,7.74633896,128.33,128.3,3.8968]
[1726675938990,3.85023896,128.33,128.29,14.98]
[1726675939194,1.5201,128.35,128.29,14.98]
[1726675939595,3.8962,128.33,128.3,3.8967]
[1726675940397,3.89859606,128.34,128.29,14.98]
[1726675940600,1.5201,128.35,128.29,14.98]
[1726675940897,3.8963,128.32,128.29,18.877]
[1726675941088,7.81837869,128.32,128.29,18.877]
[1726675942102,3.8961,128.33,128.3,3.8969]
[1726675947797,0.3763,128.31,128.3,3.8969]
[1726675950003,0.3763,128.31,128.3,13.4869]
[1726675951000,0.3763,128.31,128.28,9.59]
[1726675951204,0.3763,128.31,128.25,1.5012]
[1726675951507,0.3763,128.31,128.28,9.59]
[1726675951800,3.8974,128.29,128.28,9.59]
[1726675952007,1.5386,128.3,128.28,9.59]
[1726675952604,1.5386,128.3,128.29,9.59]
[1726675953603,5.4355,128.3,128.29,9.59]
[1726675954409,3.8973,128.29,128.28,9.59]
[1726675954599,1.5386,128.3,128.26,9.59]
[1726675954998,9.59,128.29,128.24,1.4436]
[1726675955205,9.59,128.28,128.24,9.59]
[1726675955402,9.59,128.28,128.21,1.4808]
[1726675955599,9.59,128.27,128.23,9.59]
[1726675955809,9.59,128.26,128.17,1.4608]
[1726675956004,0.3763,128.31,128.19,14.98]
[1726675956005,1.434,128.25,128.19,14.98]
[1726675956211,3.8991,128.23,128.2,3.8998]
[1726675956599,1.434,128.25,128.19,14.98]
[1726675956803,3.8989,128.24,128.19,14.98]
[1726675957008,1.434,128.25,128.21,14.98]
[1726675957808,1.434,128.25,128.23,14.98]
[1726675959607,1.434,128.25,128.23,18.8789]
[1726675960104,3.8974,128.29,128.25,3.8983]
[1726675960310,3.8974,128.29,128.25,14.98]
[1726675960702,3.8974,128.29,128.25,18.8782]
[1726675960906,7.73506908,128.29,128.25,18.8782]
[1726675963710,1.473,128.3,128.25,14.98]
[1726675964022,1.473,128.3,128.28,14.98]
[1726675964810,1.473,128.3,128.28,18.8773]
[1726675965116,246.9514305,128.41,128.29,14.98]
[1726675965307,1.4533,128.37,128.32,18.8762]
[1726675965510,1.4533,128.37,128.32,14.98]
[1726675965914,1.4533,128.37,128.32,18.8761]
[1726675966109,3.8952,128.36,128.32,18.8761]
[1726675967824,3.8954,128.35,128.31,18.8764]
[1726675969613,338.0,128.48,128.34,14.98]
[1726675969811,1.4782,128.4,128.36,14.98]
[1726675970821,5.3722,128.4,128.37,3.8947]
[1726675971317,5.3722,128.4,128.33,3.0348]
[1726675971318,1.4782,128.4,128.33,3.0348]
[1726675971621,16.4582,128.4,128.33,1.4896]
[1726675972121,16.4582,128.4,128.28,1.5452]
[1726675972122,33.24463851,128.39,128.31,14.98]
[1726675972324,16.4106,128.39,128.31,14.98]
[1726675972719,16.4106,128.39,128.34,3.8956]
[1726675972720,3.8949,128.37,128.34,3.8956]
[1726675972915,1.4306,128.39,128.33,14.98]
[1726675973221,5.3249,128.39,128.33,14.98]
[1726675973426,1.4782,128.4,128.34,14.98]
[1726675974518,5.3723,128.4,128.36,3.8948]
[1726675975124,5.3723,128.4,128.37,3.8947]
[1726675976029,1.4782,128.4,128.38,3.8944]
[1726675976420,1.4782,128.4,128.35,14.98]
[1726675976621,3.8942,128.39,128.36,3.8948]
[1726675977020,5.3722,128.4,128.37,3.8947]
[1726675977827,1.4782,128.4,128.36,3.8949]
[1726675978027,1.4782,128.4,128.35,14.98]
[1726675978228,3.8947,128.38,128.35,18.8752]
[1726675978433,3.80339881,128.37,128.35,18.8752]
[1726675979028,3.895,128.36,128.33,14.98]
[1726675979331,3.80339881,128.37,128.33,14.98]
[1726675979528,16.4582,128.4,128.33,14.98]
[1726675979731,3.8949,128.37,128.34,3.8956]
[1726675980030,7.87135774,128.37,128.34,3.8956]
[1726675980233,3.8949,128.37,128.34,3.8956]
[1726675980435,3.95329245,128.37,128.35,3.8953]
[1726675980628,1.4782,128.4,128.35,3.8953]
[1726675980830,1.4782,128.4,128.33,14.98]
[1726675981027,3.8948,128.37,128.34,3.8955]
[1726675981335,3.98603516,128.37,128.31,14.98]
[1726675981633,3.8957,128.34,128.31,3.8964]
[1726675981830,5.47674545,128.37,128.28,14.98]
[1726675982032,14.98,128.36,128.28,14.98]
[1726675982235,14.98,128.36,128.27,1.4688]
[1726675982432,3.8966,128.31,128.28,3.8973]
[1726675982927,1.4271,128.3,128.29,3.8972]
[1726675983232,1.4271,128.3,128.26,155.94]
[1726675983439,1.4271,128.3,128.24,14.98]
[1726675983634,3.8973,128.29,128.24,14.98]
[1726675984135,9.15348765,128.3,128.26,3.8979]
[1726675984436,5.25648765,128.3,128.24,14.98]
[1726675984829,9.15348765,128.3,128.26,3.898]
[1726675985929,3.8972,128.29,128.26,3.898]
[1726675986131,5.25648765,128.3,128.26,3.898]
[1726675986327,1.4271,128.3,128.26,14.98]
[1726675986833,5.41835319,128.3,128.27,3.8976]
[1726675988137,5.41835319,128.3,128.28,3.8974]
[1726675988537,1.4271,128.3,128.28,3.8974]
[1726675988733,5.39487046,128.3,128.27,3.8976]
[1726675989038,1.4271,128.3,128.27,3.8976]
[1726675989541,3.98259304,128.29,128.27,3.8976]
[1726675989937,3.98259304,128.29,128.26,3.898]
[1726675990139,3.8973,128.29,128.24,14.98]
[1726675990337,3.85933159,128.28,128.23,1.4567]
[1726675990537,1.4271,128.3,128.23,1.4567]
[1726675990939,3.8977,128.28,128.23,1.4567]
[1726675991140,5.25414743,128.3,128.23,1.4567]
[1726675991341,5.25414743,128.3,128.26,14.98]
[1726675991644,5.25414743,128.3,128.27,3.8976]
[1726675992033,5.25414743,128.3,128.26,14.98]
[1726675992243,5.25414743,128.3,128.27,3.8977]
[1726675992645,9.15104743,128.3,128.27,3.8977]
[1726675993040,5.25414743,128.3,128.26,14.98]
[1726675993735,9.15114743,128.3,128.27,3.8976]
[1726675994339,1.4271,128.3,128.28,3.8975]
[1726675994539,5.33831167,128.3,128.28,3.8975]
[1726675994747,1.4271,128.3,128.27,14.98]
[1726675995140,1.4271,128.3,128.28,3.8975]
[1726675996542,1.4271,128.3,128.29,3.8972]
[1726675996746,20.73591437,128.35,128.29,14.98]
[1726675996954,1.4889,128.34,128.31,14.98]
[1726675997542,1.4889,128.34,128.29,14.98]
[1726675997749,1.4889,128.34,128.28,1.5147]
[1726675997947,3.8965,128.32,128.28,5.412]
[1726675998152,3.8965,128.32,128.28,1.5147]
[1726675998849,3.8965,128.32,128.29,3.8972]
[1726676000959,3.8965,128.32,128.28,5.4121]
[1726676003359,3.8961,128.33,128.29,14.98]
[1726676003555,1.4889,128.34,128.29,14.98]
[1726676003751,5.3847,128.34,128.29,14.98]
[1726676004061,1.4889,128.34,128.29,14.98]
[1726676004957,1.4889,128.34,128.28,1.5147]
[1726676005563,3.8965,128.32,128.29,3.8971]
[1726676008159,5.3847,128.34,128.28,1.5147]
[1726676008362,5.3847,128.34,128.29,14.98]